fUST/lending_fUST_20250909
["ID","MTS","AMOUNT","RATE_DAILY","PERIOD"]
[384440043,1757416241354,-480.0,0.00013698,2]
[384440045,1757416241364,-480.0,0.00013698,2]
[384440047,1757416241372,-480.0,0.00013698,2]
[384440049,1757416241381,-529.04,0.00013698,2]
[384440051,1757416241391,-480.0,0.00013698,2]
[384440053,1757416241399,-480.0,0.00013698,2]
[384440055,1757416241409,-480.0,0.00013698,2]
[384440057,1757416241418,-480.0,0.00013698,2]
[384440059,1757416241427,-480.0,0.00013698,2]
[384440061,1757416241437,-480.0,0.00013698,2]
[384440063,1757416241446,-2453.64,0.00013698,2]
[384440065,1757416241456,-480.0,0.00013698,2]
[384440067,1757416241465,-480.0,0.00013698,2]
[384440069,1757416241476,-482.46,0.00013698,2]
[384440071,1757416241486,-500.0,0.00013698,2]
[384440073,1757416241495,-416.257472,0.00013699,2]
[384440075,1757416241504,-1125.534199,0.00013699,2]
[384440077,1757416241514,-521.35,0.000137,2]
[384440079,1757416241523,-976.0,0.00013743,2]
[384440081,1757416241532,-634.0,0.00013743,2]
[384440083,1757416241542,-2154.0,0.00013743,2]
[384440085,1757416241551,-409.0,0.00013746,2]
[384440087,1757416241560,-224.601,0.00013751,2]
[384440088,1757416241570,-250.0,0.00013751,2]
[384440090,1757416241580,-250.77,0.00013751,2]
[384440092,1757416241589,-203.009,0.00013751,2]
[384440094,1757416241599,-262.251,0.00013751,2]
[384440096,1757416241608,-221.463,0.00013751,2]
[384440098,1757416241618,-250.0,0.0001384,2]
[384440100,1757416241627,-767.28073148,0.00013872,2]
[384440102,1757416241637,-64013.91078053,0.00013872,2]
[384440104,1757416241647,-585.33296747,0.00013872,2]
[384440106,1757416241657,-168.0,0.00013874,2]
[384440108,1757416241666,-168.0,0.00013892,2]
[384440110,1757416241676,-168.0,0.0001392,2]
[384440112,1757416241690,-300.0,0.00013971,2]
[384440114,1757416241699,-300.0,0.00013971,2]
[384440116,1757416241709,-300.0,0.00013971,2]
[384440118,1757416241718,-300.0,0.00013971,2]
[384440120,1757416241731,-300.0,0.00013971,2]
[384440122,1757416241744,-300.0,0.00013971,2]
[384440124,1757416241753,-300.0,0.00013971,2]
[384440126,1757416241763,-300.0,0.00013971,2]
[384440128,1757416241772,-300.0,0.00013971,2]
[384440130,1757416241781,-300.0,0.00013971,2]
[384440132,1757416241791,-300.0,0.00013971,2]
[384440134,1757416241801,-300.0,0.00013971,2]
[384440137,1757416241811,-300.0,0.00013971,2]
[384440139,1757416241821,-300.0,0.00013971,2]
[384440141,1757416241830,-300.0,0.00013971,2]
[384440143,1757416241839,-600.0,0.00013971,2]
[384440145,1757416241849,-480.0,0.00013972,2]
[384440147,1757416241859,-388.27762541,0.00013972,2]
[384440149,1757416241868,-480.0,0.00013972,2]
[384440151,1757416241878,-480.0,0.00013972,2]
[384440153,1757416241887,-549.82026402,0.00013972,2]
[384440155,1757416241896,-151.0,0.00013972,2]
[384440157,1757416241905,-480.0,0.00013972,2]
[384440159,1757416241915,-480.0,0.00013972,2]
[384440161,1757416241925,-480.0,0.00013972,2]
[384440163,1757416241934,-480.0,0.00013972,2]
[384440165,1757416241945,-151.0,0.00013972,2]
[384440167,1757416241955,-487.22167671,0.00013972,2]
[384440169,1757416241964,-151.0,0.00013972,2]
[384440171,1757416241974,-480.0,0.00013972,2]
[384440172,1757416241983,-480.0,0.00013972,2]
[384440174,1757416241993,-205.51573194,0.00013972,2]
[384440176,1757416242001,-151.81616,0.00013972,2]
[384440178,1757416242012,-480.0,0.00013972,2]
[384440180,1757416242021,-482.59341323,0.00013972,2]
[384440182,1757416242030,-480.0,0.00013972,2]
[384440184,1757416242039,-574.13,0.00013972,2]
[384440186,1757416242049,-341.23483368,0.00013972,2]
[384440188,1757416242059,-480.0,0.00013972,2]
[384440190,1757416242068,-480.0,0.00013972,2]
[384440192,1757416242077,-480.0,0.00013972,2]
[384440194,1757416242087,-532.46962328,0.00013972,2]
[384440196,1757416242096,-480.0,0.00013972,2]
[384440198,1757416242107,-480.0,0.00013972,2]
[384440200,1757416242116,-480.0,0.00013972,2]
[384440202,1757416242125,-171.07464629,0.00013972,2]
[384440204,1757416242135,-480.0,0.00013972,2]
[384440206,1757416242145,-131.39743819,0.00013972,2]
[384440227,1757416242335,-348.60256181,0.00013972,2]
[384440229,1757416242345,-151.0,0.00013972,2]
[384440231,1757416242354,-151.0,0.00013972,2]
[384440233,1757416242363,-90.9415967,0.00013972,2]
[384440235,1757416242375,-301.71173275,0.00013972,2]
[384440237,1757416242386,-87.34667055,0.00013972,2]
[384440239,1757416242396,-480.0,0.00013972,2]
[384440241,1757416242405,-662.24,0.00013972,2]
[384440243,1757416242415,-480.0,0.00013972,2]
[384440245,1757416242424,-151.0,0.00013972,2]
[384440247,1757416242433,-304.93217762,0.00013972,2]
[384440250,1757416242445,-384.73782238,0.00013972,2]
[384440252,1757416242454,-480.0,0.00013972,2]
[384440254,1757416242463,-480.0,0.00013972,2]
[384440255,1757416242474,-480.0,0.00013972,2]
[384440257,1757416242483,-480.0,0.00013972,2]
[384440259,1757416242493,-480.0,0.00013972,2]
[384440261,1757416242502,-480.0,0.00013972,2]
[384440263,1757416242512,-480.0,0.00013972,2]
[384440265,1757416242521,-480.0,0.00013972,2]
[384440267,1757416242530,-151.0,0.00013972,2]
[384440269,1757416242540,-663.41,0.00013972,2]
[384440271,1757416242549,-151.0,0.00013972,2]
[384440273,1757416242559,-480.0,0.00013972,2]
[384440275,1757416242569,-770.78,0.00013972,2]
[384440277,1757416242578,-503.41339344,0.00013972,2]
[384440280,1757416242590,-21.6129296,0.00013972,2]
[384440282,1757416242599,-480.0,0.00013972,2]
[384440284,1757416242609,-480.0,0.00013972,2]
[384440286,1757416242618,-480.0,0.00013972,2]
[384440288,1757416242627,-232.90692175,0.00013972,2]
[384440290,1757416242636,-480.0,0.00013972,2]
[384440292,1757416242646,-480.0,0.00013972,2]
[384440294,1757416242655,-480.0,0.00013972,2]
[384440296,1757416242664,-480.0,0.00013972,2]
[384440298,1757416242674,-177.96040406,0.00013972,2]
[384440323,1757416242913,-480.0,0.00013698,2]
[384440325,1757416242923,-480.0,0.00013698,2]
[384440327,1757416242935,-480.0,0.00013698,2]
[384440329,1757416242944,-302.03959594,0.00013972,2]
[384440331,1757416242954,-354.6284493,0.00013972,2]
[384440333,1757416242977,-125.3715507,0.00013972,2]
[384440334,1757416242986,-583.97,0.00013972,2]
[384440335,1757416242995,-480.0,0.00013972,2]
[384440336,1757416243005,-574.98,0.00013972,2]
[384440337,1757416243014,-577.47,0.00013972,2]
[384440338,1757416243024,-480.0,0.00013972,2]
[384440339,1757416243033,-97.56264632,0.00013972,2]
[384440444,1757416244101,-1622.57329759,0.0001356,2]
[384440446,1757416244110,-480.0,0.00013698,2]
[384440448,1757416244121,-382.43735368,0.00013972,2]
[384440450,1757416244130,-480.0,0.00013972,2]
[384440452,1757416244141,-153.551946,0.00013972,2]
[384440454,1757416244150,-482.74,0.00013972,2]
[384440456,1757416244160,-480.0,0.00013972,2]
[384440458,1757416244169,-486.0638552,0.00013972,2]
[384440460,1757416244178,-480.0,0.00013972,2]
[384440462,1757416244187,-480.0,0.00013972,2]
[384440464,1757416244196,-551.99553795,0.00013972,2]
[384440466,1757416244205,-480.0,0.00013972,2]
[384440468,1757416244214,-480.0,0.00013972,2]
[384440470,1757416244223,-500.0,0.00013972,2]
[384440472,1757416244232,-480.0,0.00013972,2]
[384440474,1757416244241,-832.33,0.00013972,2]
[384440476,1757416244251,-480.0,0.00013972,2]
[384440478,1757416244260,-157.552116,0.00013972,2]
[384440480,1757416244269,-480.0,0.00013972,2]
[384440482,1757416244278,-480.0,0.00013972,2]
[384440484,1757416244287,-480.0,0.00013972,2]
[384440486,1757416244297,-480.0,0.00013972,2]
[384440488,1757416244306,-480.0,0.00013972,2]
[384440490,1757416244315,-158.82231636,0.00013972,2]
[384440492,1757416244324,-480.0,0.00013972,2]
[384440494,1757416244333,-272.2319214,0.00013972,2]
[384440703,1757416246699,-480.0,0.00013698,2]
[384440705,1757416246709,-480.0,0.00013698,2]
[384440707,1757416246718,-1143.72,0.00013698,2]
[384440709,1757416246729,-2515.47156626,0.00013698,2]
[384440711,1757416246741,-2809.41843374,0.00013698,2]
[384440712,1757416246751,-207.7680786,0.00013972,2]
[384440713,1757416246760,-532.92,0.00013972,2]
[384440714,1757416246770,-151.0,0.00013972,2]
[384440715,1757416246779,-151.0,0.00013972,2]
[384440716,1757416246789,-53.02397324,0.00013972,2]
[384440719,1757416246807,-480.0,0.00013698,2]
[384440721,1757416246816,-489.81602676,0.00013972,2]
[384440722,1757416246825,-480.0,0.00013972,2]
[384440724,1757416246834,-480.0,0.00013972,2]
[384440726,1757416246844,-480.0,0.00013972,2]
[384440728,1757416246853,-480.0,0.00013972,2]
[384440730,1757416246863,-153.983038,0.00013972,2]
[384440732,1757416246872,-593.54,0.00013972,2]
[384440734,1757416246881,-480.0,0.00013972,2]
[384440736,1757416246891,-486.24,0.00013972,2]
[384440738,1757416246900,-480.0,0.00013972,2]
[384440740,1757416246909,-151.0,0.00013972,2]
[384440742,1757416246918,-151.0,0.00013972,2]
[384440744,1757416246927,-297.285703,0.00013972,2]
[384440746,1757416246937,-151.0,0.00013972,2]
[384440748,1757416246946,-151.0,0.00013972,2]
[384440750,1757416246955,-480.0,0.00013972,2]
[384440752,1757416246964,-480.0,0.00013972,2]
[384440754,1757416246975,-1711.45,0.00013972,2]
[384440756,1757416246986,-552.9,0.00013972,2]
[384440758,1757416246996,-480.0,0.00013972,2]
[384440760,1757416247007,-732.08,0.00013972,2]
[384440762,1757416247020,-480.0,0.00013972,2]
[384440764,1757416247032,-480.0,0.00013972,2]
[384440766,1757416247044,-480.0,0.00013972,2]
[384440768,1757416247055,-652.96,0.00013972,2]
[384440770,1757416247066,-480.0,0.00013972,2]
[384440772,1757416247077,-151.0,0.00013972,2]
[384440774,1757416247088,-480.0,0.00013972,2]
[384440776,1757416247100,-1330.15,0.00013972,2]
[384440778,1757416247111,-480.0,0.00013972,2]
[384440780,1757416247122,-2271.76,0.00013972,2]
[384440782,1757416247132,-421.59935684,0.00013972,2]
[384440784,1757416247142,-589.49,0.00013972,2]
[384440786,1757416247152,-151.0,0.00013972,2]
[384440788,1757416247161,-434.67085714,0.00013972,2]
[384440790,1757416247170,-151.0,0.00013972,2]
[384440792,1757416247179,-598.57,0.00013972,2]
[384440794,1757416247189,-480.0,0.00013972,2]
[384440796,1757416247199,-2764.99,0.00013972,2]
[384440798,1757416247208,-480.0,0.00013972,2]
[384440800,1757416247217,-480.0,0.00013972,2]
[384440802,1757416247228,-151.0,0.00013972,2]
[384440804,1757416247237,-480.0,0.00013972,2]
[384440806,1757416247246,-151.0,0.00013972,2]
[384440808,1757416247256,-480.0,0.00013972,2]
[384440810,1757416247264,-698.68,0.00013972,2]
[384440812,1757416247273,-556.69,0.00013972,2]
[384440815,1757416247283,-151.0,0.00013972,2]
[384440817,1757416247293,-807.33,0.00013972,2]
[384440819,1757416247303,-480.0,0.00013972,2]
[384440821,1757416247312,-1371.93,0.00013972,2]
[384440823,1757416247321,-881.74,0.00013972,2]
[384440825,1757416247330,-480.0,0.00013972,2]
[384440827,1757416247339,-480.0,0.00013972,2]
[384440829,1757416247349,-13876.33,0.00013972,2]
[384440831,1757416247359,-480.0,0.00013972,2]
[384440833,1757416247368,-151.0,0.00013972,2]
[384440835,1757416247377,-816.14,0.00013972,2]
[384440837,1757416247386,-480.0,0.00013972,2]
[384440839,1757416247395,-480.0,0.00013972,2]
[384440841,1757416247405,-480.0,0.00013972,2]
[384440843,1757416247414,-480.0,0.00013972,2]
[384440845,1757416247423,-767.55,0.00013972,2]
[384440847,1757416247432,-151.0,0.00013972,2]
[384440849,1757416247441,-151.0,0.00013972,2]
[384440851,1757416247450,-154.565898,0.00013972,2]
[384440853,1757416247460,-480.0,0.00013972,2]
[384440855,1757416247469,-480.0,0.00013972,2]
[384440857,1757416247479,-480.0,0.00013972,2]
[384440858,1757416247489,-480.0,0.00013972,2]
[384440860,1757416247498,-480.0,0.00013972,2]
[384440862,1757416247508,-480.0,0.00013972,2]
[384440865,1757416247518,-480.0,0.00013972,2]
[384440867,1757416247527,-416.5083883,0.00013972,2]
[384440869,1757416247537,-480.0,0.00013972,2]
[384440871,1757416247546,-570.28,0.00013972,2]
[384440873,1757416247555,-740.55,0.00013972,2]
[384440875,1757416247564,-1096.87,0.00013972,2]
[384440877,1757416247574,-1538.07,0.00013972,2]
[384440879,1757416247583,-480.0,0.00013972,2]
[384440881,1757416247592,-480.0,0.00013972,2]
[384440883,1757416247602,-480.0,0.00013972,2]
[384440885,1757416247612,-878.15,0.00013972,2]
[384440887,1757416247621,-842.36,0.00013972,2]
[384440889,1757416247632,-480.0,0.00013972,2]
[384440891,1757416247641,-2253.2,0.00013972,2]
[384440893,1757416247650,-480.0,0.00013972,2]
[384440895,1757416247660,-1188.82,0.00013972,2]
[384440897,1757416247669,-1507.78,0.00013972,2]
[384440899,1757416247681,-480.0,0.00013972,2]
[384440900,1757416247692,-480.0,0.00013972,2]
[384440902,1757416247701,-480.0,0.00013972,2]
[384440904,1757416247711,-480.0,0.00013972,2]
[384440905,1757416247720,-480.0,0.00013972,2]
[384440906,1757416247730,-4401.34,0.00013972,2]
[384440908,1757416247741,-480.0,0.00013972,2]
[384440910,1757416247750,-480.0,0.00013972,2]
[384440912,1757416247760,-480.0,0.00013972,2]
[384440914,1757416247770,-480.0,0.00013972,2]
[384440916,1757416247780,-221.49151591,0.00013972,2]
[384440918,1757416247790,-480.0,0.00013972,2]
[384440920,1757416247800,-480.0,0.00013972,2]
[384440922,1757416247810,-496.38,0.00013972,2]
[384440924,1757416247819,-480.0,0.00013972,2]
[384440926,1757416247829,-946.2,0.00013972,2]
[384440928,1757416247839,-786.87,0.00013972,2]
[384440930,1757416247848,-480.0,0.00013972,2]
[384440932,1757416247857,-480.0,0.00013972,2]
[384440934,1757416247867,-4373.34,0.00013972,2]
[384440936,1757416247876,-480.0,0.00013972,2]
[384440938,1757416247886,-480.0,0.00013972,2]
[384440940,1757416247895,-1039.07,0.00013972,2]
[384440942,1757416247905,-1687.98,0.00013972,2]
[384440944,1757416247914,-937.26,0.00013972,2]
[384440946,1757416247923,-480.0,0.00013972,2]
[384440948,1757416247933,-151.0,0.00013972,2]
[384440950,1757416247943,-480.0,0.00013972,2]
[384440952,1757416247954,-480.0,0.00013972,2]
[384440954,1757416247963,-533.06,0.00013972,2]
[384440956,1757416247974,-480.0,0.00013972,2]
[384440958,1757416247983,-480.0,0.00013972,2]
[384440960,1757416247992,-480.0,0.00013972,2]
[384440962,1757416248002,-151.0,0.00013972,2]
[384440964,1757416248011,-480.0,0.00013972,2]
[384440966,1757416248021,-480.0,0.00013972,2]
[384440968,1757416248031,-151.0,0.00013972,2]
[384440970,1757416248040,-488.27768214,0.00013972,2]
[384440972,1757416248050,-151.0,0.00013972,2]
[384440974,1757416248059,-480.0,0.00013972,2]
[384440976,1757416248069,-2453.64,0.00013972,2]
[384440978,1757416248079,-151.0,0.00013972,2]
[384440980,1757416248089,-151.0,0.00013972,2]
[384440981,1757416248099,-480.0,0.00013972,2]
[384440983,1757416248109,-264.990254,0.00013972,2]
[384440985,1757416248119,-482.46,0.00013972,2]
[384440987,1757416248130,-480.0,0.00013972,2]
[384440989,1757416248140,-480.0,0.00013972,2]
[384440991,1757416248150,-480.0,0.00013972,2]
[384440993,1757416248160,-480.0,0.00013972,2]
[384440996,1757416248170,-480.0,0.00013972,2]
[384440997,1757416248180,-1143.72,0.00013972,2]
[384440999,1757416248190,-5324.89,0.00013972,2]
[384441001,1757416248200,-500.0,0.00013972,2]
[384441003,1757416248210,-500.0,0.00013973,2]
[384441005,1757416248220,-3909.1450367,0.00013985,2]
[384441007,1757416248230,-13729.9477048,0.00013985,2]
[384441009,1757416248240,-16106.94481523,0.0001399,2]
[384441011,1757416248250,-500.0,0.00014246,2]
[384441013,1757416248259,-480.0,0.00014246,2]
[384441015,1757416248268,-151.0,0.00014246,2]
[384441017,1757416248277,-480.0,0.00014246,2]
[384441019,1757416248286,-480.0,0.00014246,2]
[384441021,1757416248295,-480.0,0.00014246,2]
[384441023,1757416248304,-480.0,0.00014246,2]
[384441025,1757416248314,-480.0,0.00014246,2]
[384441027,1757416248323,-480.0,0.00014246,2]
[384441029,1757416248332,-574.13,0.00014246,2]
[384441031,1757416248341,-574.26322636,0.00014246,2]
[384441033,1757416248351,-480.0,0.00014246,2]
[384441035,1757416248360,-480.0,0.00014246,2]
[384441036,1757416248369,-480.0,0.00014246,2]
[384441038,1757416248378,-167.03,0.00014246,2]
[384441040,1757416248387,-151.0,0.00014246,2]
[384441042,1757416248396,-196.955848,0.00014246,2]
[384441044,1757416248405,-480.0,0.00014246,2]
[384441046,1757416248415,-480.0,0.00014246,2]
[384441048,1757416248425,-662.24,0.00014246,2]
[384441050,1757416248435,-480.0,0.00014246,2]
[384441052,1757416248444,-151.0,0.00014246,2]
[384441054,1757416248454,-689.67,0.00014246,2]
[384441056,1757416248463,-480.0,0.00014246,2]
[384441058,1757416248473,-480.0,0.00014246,2]
[384441060,1757416248483,-480.0,0.00014246,2]
[384441062,1757416248492,-480.0,0.00014246,2]
[384441064,1757416248501,-480.0,0.00014246,2]
[384441066,1757416248511,-480.0,0.00014246,2]
[384441068,1757416248520,-480.0,0.00014246,2]
[384441070,1757416248530,-480.0,0.00014246,2]
[384441072,1757416248540,-151.0,0.00014246,2]
[384441073,1757416248550,-663.41,0.00014246,2]
[384441075,1757416248560,-151.0,0.00014246,2]
[384441077,1757416248570,-480.0,0.00014246,2]
[384441079,1757416248580,-770.78,0.00014246,2]
[384441081,1757416248590,-480.0,0.00014246,2]
[384441083,1757416248600,-480.0,0.00014246,2]
[384441085,1757416248611,-480.0,0.00014246,2]
[384441087,1757416248620,-480.0,0.00014246,2]
[384441089,1757416248630,-457.30565335,0.00014246,2]
[384441091,1757416248639,-480.0,0.00014246,2]
[384441093,1757416248649,-480.0,0.00014246,2]
[384441095,1757416248658,-480.0,0.00014246,2]
[384441097,1757416248667,-480.0,0.00014246,2]
[384441099,1757416248678,-583.97,0.00014246,2]
[384441101,1757416248693,-480.0,0.00014246,2]
[384441103,1757416248702,-574.98,0.00014246,2]
[384441105,1757416248711,-577.47,0.00014246,2]
[384441107,1757416248723,-480.0,0.00014246,2]
[384441109,1757416248732,-480.0,0.00014246,2]
[384441111,1757416248742,-480.0,0.00014246,2]
[384441112,1757416248754,-482.74,0.00014246,2]
[384441114,1757416248765,-480.0,0.00014246,2]
[384441116,1757416248774,-480.0,0.00014246,2]
[384441118,1757416248784,-480.0,0.00014246,2]
[384441120,1757416248793,-480.0,0.00014246,2]
[384441122,1757416248803,-480.0,0.00014246,2]
[384441124,1757416248812,-187.9311496,0.00014246,2]
[384441126,1757416248822,-832.33,0.00014246,2]
[384441128,1757416248831,-480.0,0.00014246,2]
[384441130,1757416248841,-480.0,0.00014246,2]
[384441132,1757416248850,-480.0,0.00014246,2]
[384441134,1757416248860,-480.0,0.00014246,2]
[384441136,1757416248869,-480.0,0.00014246,2]
[384441138,1757416248878,-480.0,0.00014246,2]
[384441140,1757416248888,-157.0,0.00014246,2]
[384441142,1757416248897,-157.0,0.00014246,2]
[384441144,1757416248907,-282.11178274,0.00014246,2]
[384441146,1757416248916,-157.0,0.00014246,2]
[384441148,1757416248926,-157.0,0.00014246,2]
[384441150,1757416248935,-480.0,0.00014246,2]
[384441152,1757416248944,-532.92,0.00014246,2]
[384441154,1757416248954,-151.0,0.00014246,2]
[384441155,1757416248963,-151.0,0.00014246,2]
[384441170,1757416249111,-542.84,0.00014246,2]
[384441172,1757416249122,-480.0,0.00014246,2]
[384441174,1757416249132,-480.0,0.00014246,2]
[384441176,1757416249142,-480.0,0.00014246,2]
[384441178,1757416249152,-480.0,0.00014246,2]
[384441180,1757416249161,-181.88739911,0.00014246,2]
[384441182,1757416249172,-157.0,0.00014246,2]
[384441184,1757416249182,-157.0,0.00014246,2]
[384441186,1757416249191,-157.0,0.00014246,2]
[384441188,1757416249201,-593.54,0.00014246,2]
[384441190,1757416249211,-480.0,0.00014246,2]
[384441192,1757416249221,-486.24,0.00014246,2]
[384441194,1757416249232,-480.0,0.00014246,2]
[384441196,1757416249242,-151.0,0.00014246,2]
[384441198,1757416249252,-151.0,0.00014246,2]
[384441200,1757416249263,-151.0,0.00014246,2]
[384441202,1757416249273,-151.0,0.00014246,2]
[384441204,1757416249283,-151.0,0.00014246,2]
[384441206,1757416249293,-151.0,0.00014246,2]
[384441208,1757416249302,-151.0,0.00014246,2]
[384441210,1757416249312,-151.0,0.00014246,2]
[384441212,1757416249321,-480.0,0.00014246,2]
[384441214,1757416249332,-480.0,0.00014246,2]
[384441216,1757416249341,-1711.45,0.00014246,2]
[384441218,1757416249351,-552.9,0.00014246,2]
[384441220,1757416249360,-480.0,0.00014246,2]
[384441222,1757416249369,-732.08,0.00014246,2]
[384441224,1757416249378,-591.70045793,0.00014246,2]
[384441226,1757416249387,-480.0,0.00014246,2]
[384441228,1757416249397,-480.0,0.00014246,2]
[384441230,1757416249406,-652.96,0.00014246,2]
[384441232,1757416249415,-480.0,0.00014246,2]
[384441234,1757416249424,-403.68552235,0.00014246,2]
[384441236,1757416249433,-1330.15,0.00014246,2]
[384441238,1757416249443,-480.0,0.00014246,2]
[384441239,1757416249452,-2271.76,0.00014246,2]
[384441241,1757416249461,-589.49,0.00014246,2]
[384441243,1757416249471,-598.57,0.00014246,2]
[384441245,1757416249482,-480.0,0.00014246,2]
[384441247,1757416249491,-2764.99,0.00014246,2]
[384441249,1757416249501,-480.0,0.00014246,2]
[384441251,1757416249511,-480.0,0.00014246,2]
[384441253,1757416249520,-480.0,0.00014246,2]
[384441255,1757416249529,-480.0,0.00014246,2]
[384441257,1757416249540,-698.68,0.00014246,2]
[384441259,1757416249549,-556.69,0.00014246,2]
[384441261,1757416249558,-807.33,0.00014246,2]
[384441263,1757416249567,-480.0,0.00014246,2]
[384441265,1757416249577,-1371.93,0.00014246,2]
[384441267,1757416249586,-881.74,0.00014246,2]
[384441269,1757416249595,-480.0,0.00014246,2]
[384441271,1757416249604,-480.0,0.00014246,2]
[384441273,1757416249614,-13876.33,0.00014246,2]
[384441274,1757416249623,-480.0,0.00014246,2]
[384441276,1757416249633,-816.14,0.00014246,2]
[384441278,1757416249642,-480.0,0.00014246,2]
[384441280,1757416249652,-480.0,0.00014246,2]
[384441282,1757416249661,-480.0,0.00014246,2]
[384441284,1757416249670,-480.0,0.00014246,2]
[384441286,1757416249679,-767.55,0.00014246,2]
[384441288,1757416249692,-151.0,0.00014246,2]
[384441290,1757416249701,-480.0,0.00014246,2]
[384441292,1757416249710,-480.0,0.00014246,2]
[384441294,1757416249719,-480.0,0.00014246,2]
[384441296,1757416249730,-480.0,0.00014246,2]
[384441298,1757416249741,-480.0,0.00014246,2]
[384441300,1757416249751,-480.0,0.00014246,2]
[384441302,1757416249760,-604.61344924,0.00014246,2]
[384441304,1757416249769,-480.0,0.00014246,2]
[384441306,1757416249779,-740.55,0.00014246,2]
[384441308,1757416249788,-570.28,0.00014246,2]
[384441310,1757416249797,-1096.87,0.00014246,2]
[384441312,1757416249806,-1538.07,0.00014246,2]
[384441314,1757416249816,-480.0,0.00014246,2]
[384441316,1757416249825,-480.0,0.00014246,2]
[384441318,1757416249834,-480.0,0.00014246,2]
[384441320,1757416249843,-878.15,0.00014246,2]
[384441322,1757416249852,-842.36,0.00014246,2]
[384441324,1757416249861,-480.0,0.00014246,2]
[384441326,1757416249870,-2253.2,0.00014246,2]
[384441328,1757416249878,-480.0,0.00014246,2]
[384441330,1757416249887,-1188.82,0.00014246,2]
[384441331,1757416249897,-1507.78,0.00014246,2]
[384441333,1757416249906,-480.0,0.00014246,2]
[384441335,1757416249915,-480.0,0.00014246,2]
[384441337,1757416249924,-480.0,0.00014246,2]
[384441338,1757416249933,-480.0,0.00014246,2]
[384441339,1757416249942,-480.0,0.00014246,2]
[384441340,1757416249951,-4401.34,0.00014246,2]
[384441341,1757416249960,-480.0,0.00014246,2]
[384441342,1757416249970,-480.0,0.00014246,2]
[384441343,1757416249979,-480.0,0.00014246,2]
[384441344,1757416249989,-480.0,0.00014246,2]
[384441345,1757416249998,-480.0,0.00014246,2]
[384441346,1757416250008,-480.0,0.00014246,2]
[384441347,1757416250017,-496.38,0.00014246,2]
[384441348,1757416250026,-480.0,0.00014246,2]
[384441349,1757416250035,-946.2,0.00014246,2]
[384441350,1757416250044,-786.87,0.00014246,2]
[384441351,1757416250053,-480.0,0.00014246,2]
[384441352,1757416250062,-480.0,0.00014246,2]
[384441353,1757416250072,-4373.34,0.00014246,2]
[384441354,1757416250081,-480.0,0.00014246,2]
[384441355,1757416250090,-480.0,0.00014246,2]
[384441356,1757416250099,-1039.07,0.00014246,2]
[384441358,1757416250108,-1687.98,0.00014246,2]
[384441360,1757416250118,-937.26,0.00014246,2]
[384441362,1757416250127,-480.0,0.00014246,2]
[384441364,1757416250136,-157.0,0.00014246,2]
[384441366,1757416250145,-500.0,0.00014246,2]